fUSD/lending_fUSD_20260614
["ID","MTS","AMOUNT","RATE_DAILY","PERIOD"]
[425019555,1781434269000,-500.0,0.00027397,2]
[425019533,1781434269000,-500.0,0.00027397,2]
[425019553,1781434269000,-500.0,0.00027397,2]
[425019536,1781434269000,-500.0,0.00027397,120]
[425019532,1781434269000,-500.0,0.00027397,2]
[425019541,1781434269000,-500.0,0.00027397,2]
[425019534,1781434269000,-500.0,0.00027397,2]
[425019531,1781434269000,-500.0,0.00027397,2]
[425019537,1781434269000,-500.0,0.00027397,2]
[425019539,1781434269000,-500.0,0.00027397,2]
[425019540,1781434269000,-500.0,0.00027397,2]
[425019538,1781434269000,-500.0,0.00027397,2]
[425019535,1781434269000,-500.0,0.00027397,2]
[425019550,1781434269000,-500.0,0.00027397,2]
[425019542,1781434269000,-500.0,0.00027397,2]
[425019545,1781434269000,-500.0,0.00027397,2]
[425019546,1781434269000,-500.0,0.00027397,2]
[425019548,1781434269000,-628.32814026,0.00027397,2]
[425019547,1781434269000,-500.0,0.00027397,2]
[425019544,1781434269000,-500.0,0.00027397,2]
[425019549,1781434269000,-500.0,0.00027397,2]
[425019552,1781434269000,-388.65098881,0.00027397,2]
[425019543,1781434269000,-500.0,0.00027397,2]
[425019551,1781434269000,-500.0,0.00027397,2]
[425019616,1781434270000,-500.0,0.00027397,2]
[425019614,1781434270000,-500.0,0.00027397,2]
[425019619,1781434270000,-500.0,0.00027397,2]
[425019613,1781434270000,-500.0,0.00027397,2]
[425019618,1781434270000,-500.0,0.00027397,2]
[425019607,1781434270000,-325.60881368,0.00027397,2]
[425019617,1781434270000,-500.0,0.00027397,2]
[425019612,1781434270000,-572.35593708,0.00027397,2]
[425019610,1781434270000,-500.0,0.00027397,2]
[425019604,1781434270000,-500.0,0.00027397,2]
[425019620,1781434270000,-618.47,0.00027397,2]
[425019611,1781434270000,-500.0,0.00027397,2]
[425019628,1781434270000,-505.32,0.00027397,2]
[425019622,1781434270000,-500.0,0.00027397,2]
[425019621,1781434270000,-500.0,0.00027397,2]
[425019623,1781434270000,-500.0,0.00027397,2]
[425019631,1781434270000,-500.0,0.00027397,2]
[425019624,1781434270000,-548.55,0.00027397,2]
[425019627,1781434270000,-562.41,0.00027397,2]
[425019625,1781434270000,-500.0,0.00027397,2]
[425019630,1781434270000,-500.0,0.00027397,2]
[425019629,1781434270000,-509.47,0.00027397,2]
[425019626,1781434270000,-554.92,0.00027397,2]
[425019608,1781434270000,-500.0,0.00027397,2]
[425019615,1781434270000,-235.98188412,0.00027397,2]
[425019605,1781434270000,-500.0,0.00027397,2]
[425019580,1781434270000,-500.0,0.00027397,2]
[425019606,1781434270000,-487.34134905,0.00027397,2]
[425019633,1781434270000,-500.0,0.00027397,2]
[425019579,1781434270000,-500.0,0.00027397,2]
[425019583,1781434270000,-500.0,0.00027397,2]
[425019582,1781434270000,-500.0,0.00027397,2]
[425019584,1781434270000,-500.0,0.00027397,2]
[425019581,1781434270000,-500.0,0.00027397,2]
[425019585,1781434270000,-500.0,0.00027397,2]
[425019586,1781434270000,-549.5,0.00027397,2]
[425019589,1781434270000,-500.0,0.00027397,2]
[425019593,1781434270000,-500.0,0.00027397,2]
[425019587,1781434270000,-303.67135086,0.00027397,2]
[425019592,1781434270000,-500.0,0.00027397,2]
[425019595,1781434270000,-500.0,0.00027397,2]
[425019591,1781434270000,-500.0,0.00027397,2]
[425019588,1781434270000,-500.0,0.00027397,2]
[425019590,1781434270000,-500.0,0.00027397,2]
[425019597,1781434270000,-500.0,0.00027397,2]
[425019594,1781434270000,-500.0,0.00027397,2]
[425019596,1781434270000,-500.0,0.00027397,2]
[425019599,1781434270000,-500.0,0.00027397,2]
[425019600,1781434270000,-500.0,0.00027397,2]
[425019598,1781434270000,-513.29,0.00027397,2]
[425019609,1781434270000,-500.0,0.00027397,2]
[425019601,1781434270000,-500.0,0.00027397,2]
[425019602,1781434270000,-500.0,0.00027397,2]
[425019603,1781434270000,-500.0,0.00027397,2]
[425019643,1781434270000,-500.0,0.00027397,2]
[425019686,1781434270000,-347.99927,0.00027397,2]
[425019632,1781434270000,-577.02400593,0.00027397,2]
[425019663,1781434270000,-581.87925369,0.00027397,2]
[425019666,1781434270000,-500.0,0.00027397,2]
[425019667,1781434270000,-500.0,0.00027397,2]
[425019669,1781434270000,-500.0,0.00027397,2]
[425019668,1781434270000,-500.0,0.00027397,2]
[425019676,1781434270000,-500.0,0.00027397,2]
[425019670,1781434270000,-500.0,0.00027397,2]
[425019672,1781434270000,-500.0,0.00027397,2]
[425019671,1781434270000,-500.0,0.00027397,2]
[425019675,1781434270000,-552.92,0.00027397,2]
[425019674,1781434270000,-500.0,0.00027397,2]
[425019658,1781434270000,-500.0,0.00027397,2]
[425019677,1781434270000,-520.94,0.00027397,2]
[425019678,1781434270000,-500.0,0.00027397,2]
[425019679,1781434270000,-500.0,0.00027397,2]
[425019680,1781434270000,-500.0,0.00027397,2]
[425019681,1781434270000,-500.0,0.00027397,2]
[425019685,1781434270000,-500.0,0.00027397,2]
[425019683,1781434270000,-500.0,0.00027397,2]
[425019682,1781434270000,-191.46394922,0.00027397,2]
[425019684,1781434270000,-500.0,0.00027397,2]
[425019688,1781434270000,-500.0,0.00027397,2]
[425019689,1781434270000,-500.0,0.00027397,2]
[425019636,1781434270000,-500.0,0.00027397,2]
[425019687,1781434270000,-500.0,0.00027397,2]
[425019662,1781434270000,-500.0,0.00027397,2]
[425019673,1781434270000,-500.0,0.00027397,2]
[425019664,1781434270000,-500.0,0.00027397,2]
[425019660,1781434270000,-500.0,0.00027397,2]
[425019642,1781434270000,-500.0,0.00027397,2]
[425019635,1781434270000,-500.0,0.00027397,2]
[425019637,1781434270000,-500.0,0.00027397,2]
[425019639,1781434270000,-500.0,0.00027397,2]
[425019638,1781434270000,-500.0,0.00027397,2]
[425019641,1781434270000,-500.0,0.00027397,2]
[425019640,1781434270000,-642.76,0.00027397,2]
[425019645,1781434270000,-194.43229163,0.00027397,2]
[425019644,1781434270000,-500.0,0.00027397,2]
[425019655,1781434270000,-212.32203995,0.00027397,2]
[425019653,1781434270000,-500.0,0.00027397,2]
[425019647,1781434270000,-500.0,0.00027397,2]
[425019634,1781434270000,-500.0,0.00027397,2]
[425019665,1781434270000,-500.0,0.00027397,2]
[425019654,1781434270000,-500.0,0.00027397,2]
[425019649,1781434270000,-500.0,0.00027397,2]
[425019651,1781434270000,-500.0,0.00027397,2]
[425019648,1781434270000,-500.0,0.00027397,2]
[425019650,1781434270000,-508.83,0.00027397,2]
[425019652,1781434270000,-500.0,0.00027397,2]
[425019656,1781434270000,-574.53,0.00027397,2]
[425019657,1781434270000,-500.0,0.00027397,2]
[425019661,1781434270000,-586.63467762,0.00027397,2]
[425019659,1781434270000,-500.0,0.00027397,2]
[425019646,1781434270000,-500.0,0.00027397,2]
[425019725,1781434271000,-500.0,0.00027397,2]
[425019733,1781434271000,-500.0,0.00027397,2]
[425019723,1781434271000,-500.0,0.00027397,2]
[425019734,1781434271000,-500.0,0.00027397,2]
[425019720,1781434271000,-567.18,0.00027397,2]
[425019724,1781434271000,-502.46,0.00027397,2]
[425019719,1781434271000,-500.0,0.00027397,2]
[425019711,1781434271000,-500.0,0.00027397,2]
[425019721,1781434271000,-500.0,0.00027397,2]
[425019726,1781434271000,-500.0,0.00027397,2]
[425019735,1781434271000,-500.0,0.00027397,2]
[425019740,1781434271000,-500.0,0.00027397,2]
[425019737,1781434271000,-500.0,0.00027397,2]
[425019727,1781434271000,-500.0,0.00027397,2]
[425019732,1781434271000,-500.0,0.00027397,2]
[425019728,1781434271000,-500.0,0.00027397,2]
[425019731,1781434271000,-500.0,0.00027397,2]
[425019736,1781434271000,-500.0,0.00027397,2]
[425019741,1781434271000,-500.0,0.00027397,2]
[425019738,1781434271000,-500.0,0.00027397,2]
[425019744,1781434271000,-500.0,0.00027397,2]
[425019743,1781434271000,-500.0,0.00027397,2]
[425019745,1781434271000,-500.0,0.00027397,2]
[425019742,1781434271000,-500.0,0.00027397,2]
[425019730,1781434271000,-500.0,0.00027397,2]
[425019722,1781434271000,-500.0,0.00027397,2]
[425019690,1781434271000,-500.0,0.00027397,2]
[425019717,1781434271000,-320.29428243,0.00027397,2]
[425019693,1781434271000,-500.0,0.00027397,2]
[425019694,1781434271000,-351.93671142,0.00027397,2]
[425019691,1781434271000,-500.0,0.00027397,2]
[425019692,1781434271000,-219.6595963,0.00027397,2]
[425019698,1781434271000,-500.0,0.00027397,2]
[425019695,1781434271000,-500.0,0.00027397,2]
[425019696,1781434271000,-500.0,0.00027397,2]
[425019697,1781434271000,-500.0,0.00027397,2]
[425019700,1781434271000,-500.0,0.00027397,2]
[425019699,1781434271000,-500.0,0.00027397,2]
[425019702,1781434271000,-500.0,0.00027397,2]
[425019703,1781434271000,-500.0,0.00027397,2]
[425019705,1781434271000,-500.0,0.00027397,2]
[425019701,1781434271000,-500.0,0.00027397,2]
[425019704,1781434271000,-500.0,0.00027397,2]
[425019707,1781434271000,-500.0,0.00027397,2]
[425019706,1781434271000,-500.0,0.00027397,2]
[425019709,1781434271000,-500.0,0.00027397,2]
[425019708,1781434271000,-500.0,0.00027397,2]
[425019713,1781434271000,-500.0,0.00027397,2]
[425019710,1781434271000,-500.0,0.00027397,2]
[425019712,1781434271000,-500.0,0.00027397,2]
[425019714,1781434271000,-500.0,0.00027397,2]
[425019716,1781434271000,-500.0,0.00027397,2]
[425019715,1781434271000,-500.0,0.00027397,2]
[425019718,1781434271000,-203.93991989,0.00027397,2]
[425019739,1781434271000,-500.0,0.00027397,2]
[425019729,1781434271000,-500.0,0.00027397,2]
[425019751,1781434271000,-500.0,0.00027397,2]
[425019776,1781434271000,-500.0,0.00027397,2]
[425019777,1781434271000,-150.0,0.00027397,2]
[425019778,1781434271000,-150.0,0.00027397,2]
[425019781,1781434271000,-500.0,0.00027397,2]
[425019780,1781434271000,-217.59642874,0.00027397,2]
[425019782,1781434271000,-500.0,0.00027397,2]
[425019786,1781434271000,-1026.02,0.00027397,2]
[425019788,1781434271000,-1500.0,0.00027397,2]
[425019785,1781434271000,-500.0,0.00027397,2]
[425019783,1781434271000,-326.63571092,0.00027397,2]
[425019790,1781434271000,-10000.0,0.00027397,2]
[425019784,1781434271000,-150.0,0.00027397,2]
[425019787,1781434271000,-404.79197461,0.00027397,120]
[425019789,1781434271000,-10000.0,0.00027397,2]
[425019791,1781434271000,-9569.46,0.00027397,2]
[425019800,1781434271000,-374.9651,0.00027397,2]
[425019799,1781434271000,-374.9651,0.00027397,2]
[425019793,1781434271000,-300.0,0.00027397,2]
[425019795,1781434271000,-151.000001,0.00027397,2]
[425019798,1781434271000,-374.9651,0.00027397,2]
[425019792,1781434271000,-429.66910366,0.00027397,2]
[425019794,1781434271000,-151.0,0.00027397,2]
[425019797,1781434271000,-374.9651,0.00027397,2]
[425019801,1781434271000,-374.9651,0.00027397,2]
[425019748,1781434271000,-623.8498389,0.00027397,2]
[425019774,1781434271000,-151.0,0.00027397,2]
[425019779,1781434271000,-150.0,0.00027397,2]
[425019796,1781434271000,-1024.05,0.00027397,2]
[425019772,1781434271000,-1000.0,0.00027397,2]
[425019775,1781434271000,-2000.0,0.00027397,2]
[425019750,1781434271000,-500.0,0.00027397,2]
[425019746,1781434271000,-500.0,0.00027397,2]
[425019747,1781434271000,-500.0,0.00027397,2]
[425019754,1781434271000,-500.0,0.00027397,2]
[425019756,1781434271000,-500.0,0.00027397,2]
[425019752,1781434271000,-314.87740431,0.00027397,2]
[425019755,1781434271000,-500.0,0.00027397,2]
[425019753,1781434271000,-500.0,0.00027397,2]
[425019758,1781434271000,-500.0,0.00027397,2]
[425019757,1781434271000,-500.0,0.00027397,2]
[425019759,1781434271000,-500.0,0.00027397,2]
[425019749,1781434271000,-500.0,0.00027397,2]
[425019762,1781434271000,-500.0,0.00027397,2]
[425019760,1781434271000,-500.0,0.00027397,2]
[425019768,1781434271000,-151.0,0.00027397,2]
[425019770,1781434271000,-300.0,0.00027397,2]
[425019769,1781434271000,-151.0,0.00027397,2]
[425019773,1781434271000,-500.0,0.00027397,15]
[425019771,1781434271000,-151.0,0.00027397,2]
[425019765,1781434271000,-500.0,0.00027397,2]
[425019767,1781434271000,-151.0,0.00027397,2]
[425019761,1781434271000,-2358.44,0.00027397,2]
[425019763,1781434271000,-1000.0,0.00027397,2]
[425019764,1781434271000,-426.82939373,0.00027397,2]
[425019766,1781434271000,-151.0,0.00027397,2]
[425019831,1781434272000,-173.812306,0.00027397,2]
[425019840,1781434272000,-173.812305,0.00027397,2]
[425019830,1781434272000,-173.812306,0.00027397,2]
[425019829,1781434272000,-173.812306,0.00027397,2]
[425019832,1781434272000,-173.812306,0.00027397,2]
[425019834,1781434272000,-173.812306,0.00027397,2]
[425019833,1781434272000,-173.812306,0.00027397,2]
[425019837,1781434272000,-173.812306,0.00027397,2]
[425019839,1781434272000,-173.812306,0.00027397,2]
[425019828,1781434272000,-173.812306,0.00027397,2]
[425019845,1781434272000,-2561.087593,0.00027397,2]
[425019849,1781434272000,-2561.087593,0.00027397,2]
[425019844,1781434272000,-2561.087593,0.00027397,2]
[425019848,1781434272000,-2561.087593,0.00027397,2]
[425019842,1781434272000,-2561.087593,0.00027397,2]
[425019843,1781434272000,-2561.087593,0.00027397,2]
[425019846,1781434272000,-2561.087593,0.00027397,2]
[425019838,1781434272000,-173.812306,0.00027397,2]
[425019847,1781434272000,-2561.087593,0.00027397,2]
[425019851,1781434272000,-2561.087593,0.00027397,2]
[425019826,1781434272000,-173.812306,0.00027397,2]
[425019859,1781434272000,-2561.087593,0.00027397,2]
[425019841,1781434272000,-2561.087593,0.00027397,2]
[425019827,1781434272000,-173.812306,0.00027397,2]
[425019813,1781434272000,-374.9651,0.00027397,2]
[425019824,1781434272000,-173.812306,0.00027397,2]
[425019860,1781434272000,-2561.087595,0.00027397,2]
[425019802,1781434272000,-374.9651,0.00027397,2]
[425019803,1781434272000,-374.9651,0.00027397,2]
[425019807,1781434272000,-374.9651,0.00027397,2]
[425019805,1781434272000,-374.9651,0.00027397,2]
[425019806,1781434272000,-374.9651,0.00027397,2]
[425019804,1781434272000,-374.9651,0.00027397,2]
[425019808,1781434272000,-374.9651,0.00027397,2]
[425019810,1781434272000,-374.9651,0.00027397,2]
[425019811,1781434272000,-374.9651,0.00027397,2]
[425019814,1781434272000,-374.9651,0.00027397,2]
[425019812,1781434272000,-374.9651,0.00027397,2]
[425019823,1781434272000,-173.812306,0.00027397,2]
[425019816,1781434272000,-374.965096,0.00027397,2]
[425019815,1781434272000,-374.9651,0.00027397,2]
[425019820,1781434272000,-153.93148,0.00027397,2]
[425019819,1781434272000,-151.0,0.00027397,2]
[425019821,1781434272000,-173.812306,0.00027397,2]
[425019817,1781434272000,-151.0,0.00027397,2]
[425019822,1781434272000,-173.812306,0.00027397,2]
[425019818,1781434272000,-151.0,0.00027397,2]
[425019825,1781434272000,-173.812306,0.00027397,2]
[425019836,1781434272000,-173.812306,0.00027397,2]
[425019835,1781434272000,-173.812306,0.00027397,2]
[425019862,1781434272000,-207.735441,0.00027397,2]
[425019809,1781434272000,-374.9651,0.00027397,2]
[425019861,1781434272000,-18543.61,0.00027397,10]
[425019882,1781434272000,-207.735435,0.00027397,2]
[425019884,1781434272000,-231.58665976,0.00027397,30]
[425019885,1781434272000,-155.93650711,0.00027399,2]
[425019889,1781434272000,-220.35,0.000274,14]
[425019893,1781434272000,-159.51919704,0.00027537,2]
[425019892,1781434272000,-500.0,0.000275,7]
[425019887,1781434272000,-1850.85,0.000274,2]
[425019888,1781434272000,-2387.41,0.000274,7]
[425019891,1781434272000,-10000.0,0.00027463,7]
[425019895,1781434272000,-406.02,0.0002755,2]
[425019894,1781434272000,-2912.37,0.0002755,30]
[425019890,1781434272000,-2209.13,0.000274,7]
[425019897,1781434272000,-3952.78,0.0002755,30]
[425019896,1781434272000,-2186.67,0.0002755,30]
[425019906,1781434272000,-301.94441645,0.00024646,2]
[425019899,1781434272000,-405.83,0.0002755,2]
[425019898,1781434272000,-2910.18,0.0002755,30]
[425019901,1781434272000,-1848.99,0.00027575,120]
[425019900,1781434272000,-3952.08,0.0002755,30]
[425019904,1781434272000,-300.0,0.00027599,10]
[425019902,1781434272000,-406.02,0.0002758,7]
[425019903,1781434272000,-405.83,0.0002758,7]
[425019854,1781434272000,-2561.087593,0.00027397,2]
[425019883,1781434272000,-179.87558598,0.00027397,7]
[425019880,1781434272000,-207.735441,0.00027397,2]
[425019905,1781434272000,-39028.58457931,0.000276,2]
[425019878,1781434272000,-207.735441,0.00027397,2]
[425019881,1781434272000,-207.735441,0.00027397,2]
[425019850,1781434272000,-2561.087593,0.00027397,2]
[425019858,1781434272000,-2561.087593,0.00027397,2]
[425019855,1781434272000,-2561.087593,0.00027397,2]
[425019852,1781434272000,-2561.087593,0.00027397,2]
[425019856,1781434272000,-2561.087593,0.00027397,2]
[425019857,1781434272000,-2561.087593,0.00027397,2]
[425019863,1781434272000,-207.735441,0.00027397,2]
[425019866,1781434272000,-207.735441,0.00027397,2]
[425019864,1781434272000,-207.735441,0.00027397,2]
[425019865,1781434272000,-207.735441,0.00027397,2]
[425019867,1781434272000,-207.735441,0.00027397,2]
[425019853,1781434272000,-2561.087593,0.00027397,2]
[425019868,1781434272000,-207.735441,0.00027397,2]
[425019879,1781434272000,-207.735441,0.00027397,2]
[425019874,1781434272000,-207.735441,0.00027397,2]
[425019877,1781434272000,-207.735441,0.00027397,2]
[425019875,1781434272000,-207.735441,0.00027397,2]
[425019876,1781434272000,-15453.01,0.00027397,10]
[425019886,1781434272000,-1265.76,0.000274,2]
[425019869,1781434272000,-207.735441,0.00027397,2]
[425019871,1781434272000,-207.735441,0.00027397,2]
[425019870,1781434272000,-207.735441,0.00027397,2]
[425019873,1781434272000,-207.735441,0.00027397,2]
[425019872,1781434272000,-207.735441,0.00027397,2]
[425019907,1781434299000,157.49328462,0.000175,2]
[425019922,1781434330000,-500.0,0.00018799,2]
[425019918,1781434330000,-500.0,0.00018799,2]
[425019920,1781434330000,-500.0,0.00018799,2]
[425019921,1781434330000,-500.0,0.00018799,2]
[425019919,1781434330000,-500.0,0.00018799,2]
[425019917,1781434330000,-455.89747953,0.00018799,2]
[425019916,1781434330000,-500.0,0.00018799,2]
[425019912,1781434330000,-151.0,0.00018261,2]
[425019914,1781434330000,-151.0,0.00018432,2]
[425019913,1781434330000,-250.0,0.00018385,2]
[425019911,1781434330000,-300.0,0.00018232,2]
[425019910,1781434330000,-150.0,0.00018217,2]
[425019909,1781434330000,-250.0,0.00018217,2]
[425019908,1781434330000,-150.0,0.00018203,2]
[425019923,1781434330000,-500.0,0.00018799,2]
[425019915,1781434330000,-500.0,0.00018799,2]
[425019925,1781434330000,-500.0,0.00018799,2]
[425019931,1781434330000,-500.0,0.00018799,2]
[425019926,1781434330000,-500.0,0.00018799,2]
[425019943,1781434330000,-500.0,0.00018799,2]
[425019924,1781434330000,-500.0,0.00018799,2]
[425019940,1781434330000,-500.0,0.00018799,2]
[425019941,1781434330000,-500.0,0.00018799,2]
[425019939,1781434330000,-500.0,0.00018799,2]
[425019938,1781434330000,-500.0,0.00018799,2]
[425019936,1781434330000,-500.0,0.00018799,2]
[425019937,1781434330000,-500.0,0.00018799,2]
[425019942,1781434330000,-500.0,0.00018799,2]
[425019934,1781434330000,-500.0,0.00018799,2]
[425019933,1781434330000,-500.0,0.00018799,2]
[425019932,1781434330000,-500.0,0.00018799,2]
[425019930,1781434330000,-500.0,0.00018799,2]
[425019928,1781434330000,-500.0,0.00018799,2]
[425019929,1781434330000,-248.12922942,0.00018799,2]
[425019927,1781434330000,-500.0,0.00018799,2]
[425019935,1781434330000,-500.0,0.00018799,2]
[425019956,1781434331000,-500.0,0.00018799,2]
[425019954,1781434331000,-500.0,0.00018799,2]
[425019953,1781434331000,-500.0,0.00018799,2]
[425019951,1781434331000,-500.0,0.00018799,2]
[425019955,1781434331000,-500.0,0.00018799,2]
[425019952,1781434331000,-500.0,0.00018799,2]
[425019948,1781434331000,-500.0,0.00018799,2]
[425019949,1781434331000,-500.0,0.00018799,2]
[425019947,1781434331000,-500.0,0.00018799,2]
[425019946,1781434331000,-500.0,0.00018799,2]
[425019945,1781434331000,-500.0,0.00018799,2]
[425019944,1781434331000,-500.0,0.00018799,2]
[425019950,1781434331000,-500.0,0.00018799,2]
[425019957,1781434331000,-500.0,0.00018799,2]
[425019964,1781434331000,-500.0,0.00018799,2]
[425019959,1781434331000,-500.0,0.00018799,2]
[425019958,1781434331000,-500.0,0.00018799,2]
[425019972,1781434331000,300.0,0.00018975,2]
[425019969,1781434331000,-500.0,0.00018799,2]
[425019970,1781434331000,-2000.0,0.00018799,2]
[425019968,1781434331000,-500.0,0.00018799,2]
[425019967,1781434331000,-500.0,0.00018799,2]
[425019971,1781434331000,-1150076.6932,0.00018976,2]
[425019966,1781434331000,-500.0,0.00018799,2]
[425019963,1781434331000,-500.0,0.00018799,2]
[425019961,1781434331000,-500.0,0.00018799,2]
[425019962,1781434331000,-450.0,0.00018799,2]
[425019960,1781434331000,-500.0,0.00018799,2]
[425019965,1781434331000,-500.0,0.00018799,2]
[425019973,1781434363000,162.26580839,0.000175,2]
[425019977,1781434796000,250.0,0.00014,2]
[425019982,1781434891000,-152.0,0.000179,2]
[425019979,1781434891000,-151.0,0.000179,2]
[425019981,1781434891000,-151.0,0.000179,2]
[425019980,1781434891000,-151.0,0.000179,2]
[425019983,1781434891000,-150.0,0.000179,2]
[425019985,1781434891000,-151.0,0.000179,2]
[425019984,1781434891000,-150.0,0.000179,2]
[425019989,1781434891000,-151.0,0.000179,2]
[425019987,1781434891000,-151.0,0.000179,2]
[425019993,1781434891000,-151.0,0.000179,2]
[425019988,1781434891000,-151.0,0.000179,2]
[425019990,1781434891000,-150.0,0.000179,2]
[425019992,1781434891000,-152.0,0.000179,2]
[425019991,1781434891000,-152.0,0.000179,2]
[425019986,1781434891000,-153.0,0.000179,2]
[425020003,1781434892000,-150.0,0.00018,2]
[425020001,1781434892000,-151.0,0.00018,2]
[425019999,1781434892000,-151.0,0.00018,2]
[425020000,1781434892000,-151.0,0.00018,2]
[425019996,1781434892000,-503.0,0.00018,2]
[425019997,1781434892000,-500.0,0.00018,2]
[425019995,1781434892000,-310.33556555,0.00018,2]
[425019994,1781434892000,-255.0,0.00017999,2]
[425020005,1781434892000,-152.0,0.00018,2]
[425019998,1781434892000,-153.0,0.00018,2]
[425020004,1781434892000,-152.0,0.00018,2]
[425020002,1781434892000,-153.0,0.00018,2]
[425020009,1781434892000,-151.0,0.00018,2]
[425020007,1781434892000,-151.0,0.00018,2]
[425020017,1781434892000,-17028.05443445,0.00018313,2]
[425020014,1781434892000,-160.0,0.00018003,2]
[425020015,1781434892000,-165.78,0.00018132,2]
[425020013,1781434892000,-150.0,0.00018,2]
[425020016,1781434892000,-500.0,0.00018274,2]
[425020010,1781434892000,-150.0,0.00018,2]
[425020011,1781434892000,-153.0,0.00018,2]
[425020008,1781434892000,-150.0,0.00018,2]
[425020006,1781434892000,-152.0,0.00018,2]
[425020012,1781434892000,-151.0,0.00018,2]
[425020019,1781434943000,166.66,0.00017552,2]
[425020018,1781434943000,166.66,0.0001719,2]
[425020020,1781434969000,2027.89816437,0.00016,2]
[425020021,1781434994000,191.78,0.00017661,2]
[425020022,1781435075000,979.16,0.00017622,2]
[425020023,1781435146000,150.0,0.00017363,2]
[425020027,1781435230000,-150.0,0.000179,2]
[425020025,1781435230000,-151.0,0.000179,2]
[425020028,1781435230000,-151.0,0.000179,2]
[425020026,1781435230000,-199.5,0.000179,2]
[425020031,1781435230000,-166.66,0.00017914,2]
[425020030,1781435230000,-153.0,0.00017904,2]
[425020032,1781435230000,-2.19074466,0.00017918,2]
[425020029,1781435230000,-151.0,0.00017901,2]
[425020033,1781435343000,712.31,0.00017763,2]
[425020035,1781435432000,170.35,0.00017752,2]
[425020038,1781435432000,-28.3562846,0.00017866,2]
[425020036,1781435432000,-157.49328462,0.0001777,2]
[425020041,1781435432000,-245.33537249,0.00018176,2]
[425020037,1781435432000,-135.4837154,0.00017866,2]
[425020043,1781435432000,-61.55294255,0.00018207,2]
[425020040,1781435432000,-152.0,0.00017973,2]
[425020039,1781435432000,-148.80925534,0.00017918,2]
[425020044,1781435432000,-650.75705745,0.00018207,2]
[425020042,1781435432000,-344.62775157,0.00018192,2]
[425020055,1781435433000,-999.99,0.00018223,2]
[425020045,1781435433000,-10303.24294255,0.00018223,2]
[425020046,1781435433000,-797.59445327,0.00018223,2]
[425020052,1781435433000,-581.57206992,0.00018223,2]
[425020048,1781435433000,-966.4698738,0.00018223,2]
[425020050,1781435433000,-1901.57243958,0.00018223,2]
[425020056,1781435433000,-15140.90522761,0.00018223,2]
[425020051,1781435433000,-642.29822088,0.00018223,2]
[425020053,1781435433000,-885.26344864,0.00018223,2]
[425020058,1781435433000,-150.99,0.00018223,2]
[425020059,1781435433000,-9999.99,0.00018223,2]
[425020057,1781435433000,-9859.08477239,0.00018223,2]
[425020054,1781435433000,-7846.89655136,0.00018223,2]
[425020060,1781435433000,-3020.92,0.00018223,2]
[425020062,1781435433000,-245.33537247,0.00018231,2]
[425020068,1781435433000,-378.71365915,0.00018358,2]